Cogmind - Beta 15 @@@ ROGUE MODE // 2025.10.10 @ 00:02:23 Player: Zaros426 Result: Destroyed by G-50 Soldier with Heavy Laser Performance ------------- Evolutions (5) 2500 Regions Visited (7) 1400 Robots Destroyed (76) 380 Value Destroyed (1741) 1741 Prototype IDs (31) 620 Alien Tech Used (0) 0 Bonus (3208) 3208 TOTAL SCORE: 9849 Bonus ------- Follower Combat Kills 408 Delivered SUBCON Basin 2000 Registered with UFD 300 Met Optimus in HQ 500 Cogmind --------- Core Integrity 0/1000 Matter 83/300 Energy 144/150 System Corruption 7% Temperature Cool (9) Movement Hovering (81) Location -5/Extension Parts ------- > --- POWER (2) -------- Micro Fission Core > --- PROPULSION (6) --- Carbon-fiber Leg Carbon-fiber Leg Gravmag System Gyrokinetic Inverter > --- UTILITY (7) ------ Deep Structural Scanner Armor Integrity Analyzer Hacking Suite A0-MCA's Component Scanner Tech Extrapolator Scrapoid Pod > --- WEAPON (2) ------- Companion Sword > --- INVENTORY (5) ---- Gun Armor Nova Cannon Nova Cannon Proton Missile Launcher DRS Beacon (Ready) Peak State ------------ > --- POWER ------------ Light Ion Engine Reinforced Fission Core > --- PROPULSION ------- Medium Treads Armored Medium Treads Armored Medium Treads Nuclear Pulse Array > --- UTILITY ---------- High-capacity Storage Unit Active Sensor Suite Improved Melee Analysis Suite Hacking Suite Dynamic Insulation System > --- WEAPON ----------- EMP Blaster Companion Sword > --- INVENTORY -------- Gravmag System Antigrav System Matter Compressor Deep Structural Scanner Armor Integrity Analyzer Gun Armor Improved Shock Absorption System A0-MCA's Component Scanner Tech Extrapolator Scrapoid Pod Riot Gun Improved EM Pulse Cannon Flak Gun Datajack CPS Tube Vortex Trap DRS Beacon [Rating: 90] Favorites ----------- Power Light Ion Engine Engine Light Ion Engine Power Core Micro Fission Core Propulsion Light Treads Treads Light Treads Leg Carbon-fiber Leg Wheel Compact Wheel Hover Unit Gravmag System Flight Unit Nuclear Pulse Array Utility High-capacity Storage Unit Device Seismic Detector Storage High-capacity Storage Unit Processor Improved Melee Analysis Suite Hackware Hacking Suite Protection Core Shielding Weapon Beam Cannon Energy Gun Riot Gun Energy Cannon Beam Cannon Ballistic Gun Subdweller Machine Gun Ballistic Cannon Battle Cannon Launcher Grenade Launcher Special Weapon Mining Laser Slashing Weapon Companion Sword Special Melee Weapon Datajack Build | -11 -10 -10 -10 -7 -7 -5 -5 ------- Run | Yrd Mat Min Sub Rec Scr Fac Ext Slots Evolved 10 | . . . . . . 10 . Power 1 | . . . . . . 1 . Propulsion 4 | . . . . . . 4 . Utility 5 | . . . . . . 5 . Weapon . | . . . . . . . . Parts Attached 83 | 5 13 . 16 8 5 33 3 Power 8 | . 1 . 1 1 . 4 1 Engine 4 | . 1 . 1 1 . . 1 Core 4 | . . . . . . 4 . Reactor . | . . . . . . . . Propulsion 19 | 2 . . 3 2 1 9 2 Treads 8 | 2 . . . 1 1 4 . Leg 2 | . . . . . . . 2 Wheel 4 | . . . 3 1 . . . Hover 3 | . . . . . . 3 . Flight 2 | . . . . . . 2 . Utility 30 | 1 4 . 6 1 1 17 . Device 12 | 1 1 . 3 . . 7 . Storage 4 | . 1 . 1 . 1 1 . Processor 6 | . . . . . . 6 . Hackware 2 | . . . . 1 . 1 . Protection 6 | . 2 . 2 . . 2 . Artifact . | . . . . . . . . Weapon 26 | 2 8 . 6 4 3 3 . Energy Gun 8 | 2 2 . . 3 . 1 . Energy Cannon 5 | . 3 . 1 . . 1 . Ballistic Gun 3 | . . . 1 1 . 1 . Ballistic Cannon 3 | . . . 3 . . . . Launcher 4 | . 2 . 1 . 1 . . Special Weapon 1 | . 1 . . . . . . Impact Weapon . | . . . . . . . . Slashing Weapon 1 | . . . . . 1 . . Piercing Weapon . | . . . . . . . . Special Melee Weapon 1 | . . . . . 1 . . Unidentified Prototypes 2 | . . . . . 1 1 . Parts Lost 25 | . . . 6 . . 19 . Power 5 | . . . 1 . . 4 . Propulsion 9 | . . . 2 . . 7 . Utility 7 | . . . 1 . . 6 . Weapon 4 | . . . 2 . . 2 . Highest Loss Streak 19 | . . . 4 . . 19 . To Critical Strikes 2 | . . . 2 . . . . Average Backups 15 | 3 13 20 14 15 16 14 4 Power . | . . . . . . . . Propulsion 2 | . 2 4 3 2 1 1 . Utility 7 | . 6 9 6 8 8 7 1 Weapon 4 | 1 4 5 3 3 5 2 3 Tool/Special . | . . . . . . . . Unused Backups 74 | . 3 2 10 . 38 17 4 Power 4 | . . . . . 2 2 . Propulsion 14 | . . 1 4 . 7 2 . Utility 32 | . 1 1 4 . 16 9 1 Weapon 20 | . 1 . 2 . 11 3 3 Tool/Special 4 | . 1 . . . 2 1 . Average Slot Usage (%) 90 | . 99 100 90 100 83 62 60 Engine 12 | . 13 14 10 14 14 3 . Treads 18 | . 27 28 16 13 16 10 . Wheel 7 | . . . 11 14 11 . . Device 4 | . 7 14 5 . . 5 11 Storage 11 | . 10 14 10 14 13 4 . Hackware 5 | . . . . 13 14 9 5 Protection 3 | . 9 . 7 . . . . Energy Gun 2 | . 1 . . 21 1 . . Energy Cannon 6 | . 16 17 7 . . 1 . Ballistic Gun 1 | . . . 4 6 . . . Ballistic Cannon 4 | . . . 16 . . . . Launcher 3 | . 9 10 . . . . . Slashing Weapon 1 | . . . . . 2 4 5 Special Melee Weapon 2 | . . . . . 7 . . Peak Build Rating 90 | 5 9 9 32 35 25 90 69 Average Rating 16 | 3 8 9 12 22 15 64 64 On Entrance 20 | . 4 9 9 32 19 25 63 Naked Turns . | . . . . . . . . Heaviest Build 91 | 3 52 52 91 91 90 78 18 Greatest Support 132 | 20 40 40 40 20 48 132 20 Greatest Overweight (x) 5 | . 1 1 4 5 5 2 1 Average Overweight (x) 1 | . . 1 1 4 2 . . Largest Inventory Capacity 25 | 5 20 20 25 25 25 20 5 Average Capacity 19 | 5 16 20 16 25 21 18 5 Most Carried 25 | 5 20 20 25 25 25 20 5 Average Carried 16 | 3 13 19 15 20 17 17 5 Final Capacity 25 | 5 20 20 25 25 20 5 5 Final Carried 25 | 5 20 20 25 24 20 5 5 Class Distribution -------------------- 54% | Mutant 36% | Scavenger-Mutant 6% | Subdweller-Mutant Dominant Class ---------------- Mutant | -10/Materials Mutant | -10/Mines Mutant | -10/Subcaves Scavenger-Mutant | -7/Recycling Scavenger-Mutant | -7/Scraptown Hacker-Assassin | -5/Factory Mutant | -5/Extension Resources | -11 -10 -10 -10 -7 -7 -5 -5 ----------- Run | Yrd Mat Min Sub Rec Scr Fac Ext Matter Collected 2288 | 250 440 30 686 194 151 321 216 Remotely . | . . . . . . . . Salvage Created 2768 | 132 838 265 406 510 . 350 267 Parts 156 | 12 55 13 22 16 . 26 12 Haulers Intercepted 2 | . 2 . . . . . . Recyclers Shooed 6 | 1 2 . . 3 . . . Parts Field Recycled . | . . . . . . . . Retrieved Matter . | . . . . . . . . Parts Self-Destructed 8 | . . . 8 . . . . Prevented . | . . . . . . . . Kills | -11 -10 -10 -10 -7 -7 -5 -5 ------- Run | Yrd Mat Min Sub Rec Scr Fac Ext Combat Hostiles Destroyed 40 | . 14 2 16 1 . 5 2 Melee 5 | . . . . . . 3 2 Guns 4 | . 2 . 1 1 . . . Cannons 18 | . 5 . 13 . . . . AOE 12 | . 6 2 2 . . 2 . Classes Destroyed 15 | 2 7 1 2 . . 3 . Worker 9 | . 5 4 . . . . . Builder 5 | . 1 2 . . . 1 1 Tunneler 4 | 3 1 . . . . . . Hauler 2 | . 2 . . . . . . Recycler 13 | 1 3 2 . 6 . . 1 Operator 2 | . 2 . . . . . . Watcher 3 | . 3 . . . . . . Swarmer 9 | . 5 . 4 . . . . Grunt 13 | . 9 . 2 . . 1 1 Sentry 2 | . . . 1 1 . . . Specialist 1 | . . . . . . 1 . Hunter 2 | . . . . . . 2 . Programmer 2 | . . . . . . 1 1 Subdweller 9 | . . . 9 . . . . Assembled 2 | . . 2 . . . . . Best Kill Streak 4 | 3 4 2 4 3 . 2 1 Combat Bots Only 4 | . 3 1 4 1 . 2 1 Max Kills in Single Turn 3 | 1 3 1 2 1 . 1 1 Gunslinging . | . . . . . . . . Exploded 3 | . 3 1 2 . . 1 . Melee 1 | . . . . . . 1 1 Uniques/NPCs Destroyed . | . . . . . . . . Combat | -11 -10 -10 -10 -7 -7 -5 -5 -------- Run | Yrd Mat Min Sub Rec Scr Fac Ext Hostile Shots Fired 456 | . 32 . 79 18 . 306 21 Missed 117 | . 10 . 15 4 . 78 10 Hits 339 | . 22 . 64 14 . 228 11 Projectile 339 | . 22 . 64 14 . 228 11 AOE 1 | . . . . . . 1 . Critical Strikes 13 | . . . 3 . . 8 2 Actively Blocked 6 | . . . . . . 6 . Part Disruptions 7 | . . . . . . 7 . Actively Blocked 5 | . . . . . . 5 . Damage Taken 5735 | . 229 . 1372 105 . 3786 243 Core 1243 | . 35 . 188 10 . 897 113 Absorbed by Shields 91 | . . . . . . 91 . Redirected to Shielding 5 | . 5 . . . . . . Ignored by Resistances 39 | . . . . . . 39 . Regen/Repaired (Parts) 101 | . 101 . . . . . . Core Remaining (%) 53 | 100 . . . . 6 . . Volleys Fired 250 | 24 75 34 84 20 . 13 . Largest 2 | 2 2 2 2 2 . 2 . Hottest 120 | 90 120 120 120 100 . 119 . Shots Fired 384 | 25 107 38 166 34 . 14 . Gun 91 | 25 18 . 10 33 . 5 . Cannon 261 | . 68 36 152 1 . 4 . Launcher 31 | . 20 2 4 . . 5 . Special 1 | . 1 . . . . . . Kinetic 112 | . . . 95 13 . 4 . Thermal 222 | 25 87 36 67 7 . . . Explosive 26 | . 20 2 4 . . . . Electromagnetic 24 | . . . . 14 . 10 . Robot Hit Streak 38 | 6 20 8 38 13 . 4 . Robot Miss Streak 5 | 4 4 2 2 4 . 5 . Penetration Max . | . . . . . . . . Secondary Targets . | . . . . . . . . Shots Hit Robots 255 | 16 59 19 98 23 2 30 8 Core Hits 107 | 5 39 10 28 11 . 11 3 Critical Kills 1 | . 1 . . . . . . Critical Parts Destroyed . | . . . . . . . . Critical Strikes 4 | . 2 . 2 . . . . Burn 1 | . 1 . . . . . . Meltdown 1 | . 1 . . . . . . Blast 2 | . . . 2 . . . . Melee Attacks 42 | . . . . . 2 29 11 Impact . | . . . . . . . . Slashing 40 | . . . . . . 29 11 Piercing . | . . . . . . . . Sneak Attacks 6 | . . . . . 2 2 2 Combat Hostiles . | . . . . . . . . Follow-up Attacks 3 | . . . . . . 2 1 Damage Inflicted 6367 | 196 1769 419 1627 454 . 1507 395 Guns 947 | 196 156 . 95 410 . 90 . Cannons 2527 | . 792 352 1383 . . . . Explosions 1467 | . 821 67 149 44 . 386 . Melee 1426 | . . . . . . 1031 395 Ramming . | . . . . . . . . Kinetic 991 | . . . 780 135 . 76 . Thermal 2523 | 196 1112 352 698 165 . . . Explosive 873 | . 657 67 149 . . . . Electromagnetic 554 | . . . . 154 . 400 . Impact . | . . . . . . . . Slashing 1426 | . . . . . . 1031 395 Piercing . | . . . . . . . . Highest Corruption 7 | . . . . . . 7 7 Average Corruption 5 | . . . . . . 4 7 Corruption Purged . | . . . . . . . . Corruption Blocked . | . . . . . . . . Effects 20 | . . . . . . 8 12 Message Errors 6 | . . . . . . 2 4 Matter Fused 6 | . . . . . . 3 3 Heat Flow Errors 2 | . . . . . . . 2 Parts Rejected 1 | . . . . . . 1 . Data Loss (minor) 4 | . . . . . . 1 3 Data Loss (major) 1 | . . . . . . 1 . Overload Shots . | . . . . . . . . Overflow Damage 421 | . 115 10 . . . 200 96 Projectiles 10 | . . 10 . . . . . Explosions 115 | . 115 . . . . . . Melee 296 | . . . . . . 200 96 Knockbacks 8 | . . . 8 . . . . Impact . | . . . . . . . . Kinetic 8 | . . . 8 . . . . Secondary . | . . . . . . . . Self-Inflicted Damage . | . . . . . . . . Shots . | . . . . . . . . Rammed . | . . . . . . . . Targets Rammed . | . . . . . . . . Kicked . | . . . . . . . . Crushed . | . . . . . . . . Highest Temperature 309 | 15 290 90 66 184 . 12 309 Average Temperature 61 | 10 73 32 26 67 . 9 120 Received Heat Transfer 1055 | . 81 . 288 30 . 252 404 Effects 1 | . 1 . . . . . . Energy Bleed 1 | . 1 . . . . . . Siege Activations . | . . . . . . . . Martial Activations . | . . . . . . . . Shielding Activations . | . . . . . . . . Robots Disrupted . | . . . . . . . . Combat Hostiles . | . . . . . . . . Robots Corrupted . | . . . . . . . . Combat Hostiles . | . . . . . . . . Parts Fried 2 | . . . . 1 . 1 . Impact Corruptions . | . . . . . . . . Robots Melted 1 | . 1 . . . . . . Combat Hostiles 1 | . 1 . . . . . . Parts Melted 8 | 1 5 . 2 . . . . Heat Transferred 5248 | 580 2248 740 1480 200 . . . Parts Sabotaged . | . . . . . . . . Parts Stolen . | . . . . . . . . Parts Stripped . | . . . . . . . . Power Chain Reactions 1 | . . . . 1 . . . Alert | -11 -10 -10 -10 -7 -7 -5 -5 ------- Run | Yrd Mat Min Sub Rec Scr Fac Ext Maximum Alert Level 1 | . 1 . . . . 1 . Low Security (%) 89 | 100 72 100 . 100 . 90 100 Level 1 10 | . 27 . . . . 9 . Level 2 . | . . . . . . . . Level 3 . | . . . . . . . . Level 4 . | . . . . . . . . Level 5 . | . . . . . . . . High Security . | . . . . . . . . Max Security . | . . . . . . . . Peak Influence 310 | 10 310 120 . 126 . 277 105 Initial 120 | . . 120 . 62 . . 60 Average 74 | 1 165 7 . 23 . 75 22 Influence Increases 2331 | 20 985 55 240 250 . 619 162 Destroy 0b10 Robot/C 760 | . 280 . 140 20 . 280 40 Destroy 0b10 Robot/NC 200 | 20 85 40 . 30 . 10 15 Destroy Leader 200 | . 80 . 10 . . 90 20 Allied During Kill 36 | . . . . . . 36 . Successful Hack 116 | . 50 . . 44 . 10 12 Select Force Hacks 240 | . 60 . . 150 . 30 . Disable Machine 180 | . 135 . . . . 45 . Destroy Structure 269 | . 160 15 . 6 . 88 . Lose Combat Pursuer 330 | . 135 . 90 . . 30 75 Influence Decreases 2226 | 20 675 365 110 380 . 496 180 Entered New Map 321 | . . 190 . 68 . . 63 Time Decay 1685 | 20 675 175 100 312 . 286 117 Lost Part 200 | . . . 10 . . 190 . Lost Ally 20 | . . . . . . 20 . Squads Dispatched 16 | . 5 . . . . 9 2 Investigation 10 | . 5 . . . . 3 2 Extermination 1 | . . . . . . 1 . Reinforcement 5 | . . . . . . 5 . Assault . | . . . . . . . . Garrison . | . . . . . . . . Intercept . | . . . . . . . . Searches Triggered . | . . . . . . . . Construction Impeded 1 | . . . . . . 1 . Haulers Reinforced . | . . . . . . . . Active Scanning Responses . | . . . . . . . . Cargo Convoy Interrupts . | . . . . . . . . Stealth | -11 -10 -10 -10 -7 -7 -5 -5 --------- Run | Yrd Mat Min Sub Rec Scr Fac Ext Distress Signals 2 | . . 1 . . . . 1 Communications Jammed . | . . . . . . . . Distress Signals . | . . . . . . . . Times Spotted 84 | . 26 8 21 1 . 20 8 Peak Tracking Total 13 | . 3 13 5 1 . 10 8 Tactical Retreats 17 | . 8 2 3 . . 2 2 Traps | -11 -10 -10 -10 -7 -7 -5 -5 ------- Run | Yrd Mat Min Sub Rec Scr Fac Ext Traps Triggered 8 | . 2 . 3 . . 1 2 Indirectly . | . . . . . . . . Trap Hack Attempts . | . . . . . . . . Triggered . | . . . . . . . . Disarmed . | . . . . . . . . Reprogrammed . | . . . . . . . . Reused . | . . . . . . . . Traps Extracted . | . . . . . . . . Installed . | . . . . . . . . Triggered . | . . . . . . . . Most Traps Carried 1 | . . . 1 . 1 1 . Machines | -11 -10 -10 -10 -7 -7 -5 -5 ---------- Run | Yrd Mat Min Sub Rec Scr Fac Ext Machines Disabled 14 | . 9 . 1 . . 3 1 Max in Single Turn 3 | . 3 . 1 . . 1 . Machines Repaired . | . . . . . . . . Machines Dismantled . | . . . . . . . . Machines Sabotaged . | . . . . . . . . Overloaded Fab Kills . | . . . . . . . . Hacking | -11 -10 -10 -10 -7 -7 -5 -5 --------- Run | Yrd Mat Min Sub Rec Scr Fac Ext Machines Accessed 50 | . 11 . 4 13 12 6 4 Terminals 20 | . 8 . . 6 . 2 4 Fabricators 2 | . . . . . . 2 . Repair Stations 2 | . 1 . . . . 1 . Recycling Units 7 | . 2 . . 5 . . . Scanalyzers 1 | . . . . . . 1 . Garrison Access . | . . . . . . . . Total Hacks 214 | . 42 . 16 47 89 11 9 Successful 174 | . 23 . 16 35 89 7 4 Failed 39 | . 18 . . 12 . 4 5 Catastrophic 6 | . 1 . . 3 . . 2 Database Lockouts 1 | . 1 . . . . . . Manual 43 | . 27 . . 12 . 1 3 Terminals 64 | . 34 . . 18 . 3 9 Fabricators 4 | . . . . . . 4 . Repair Stations 7 | . 4 . . . . 3 . Recycling Units 9 | . 4 . . 5 . . . Scanalyzers 1 | . . . . . . 1 . Garrison Access . | . . . . . . . . Terminal Hacks 148 | . 8 . 16 30 89 1 4 Record 124 | . . . 13 24 87 . . Part Schematic 2 | . 1 . . 1 . . . Robot Analysis 4 | . 2 . . 2 . . . Prototype ID Bank 3 | . 1 . . 2 . . . Open Door 6 | . . . 1 . 1 1 3 Terminal Index 2 | . 1 . . 1 . . . Alert Level 1 | . . . . . . . 1 Locate Traps 1 | . 1 . . . . . . Registered Prototypes 1 | . 1 . . . . . . Zone Layout 1 | . 1 . . . . . . Proto ID Catalog 2 | . . . 1 . 1 . . Release Object 1 | . . . 1 . . . . Fabricator Hacks 4 | . . . . . . 4 . Load Schematic 2 | . . . . . . 2 . Build 2 | . . . . . . 2 . Repair Station Hacks 5 | . 4 . . . . 1 . Scan Component 3 | . 2 . . . . 1 . Repair 2 | . 2 . . . . . . Recycling Unit Hacks . | . . . . . . . . Scanalyzer . | . . . . . . . . Garrison Access Hacks . | . . . . . . . . Unauthorized Hacks 17 | . 11 . . 5 . 1 . Terminals 9 | . 9 . . . . . . Botnet 2 | . 2 . . . . . . Operators 1 | . 1 . . . . . . Skim 5 | . 5 . . . . . . Sabotage 1 | . 1 . . . . . . Fabricators . | . . . . . . . . Repair Stations . | . . . . . . . . Recycling Units 7 | . 2 . . 5 . . . Tunnel 7 | . 2 . . 5 . . . Scanalyzers 1 | . . . . . . 1 . Extract 1 | . . . . . . 1 . Garrison Access . | . . . . . . . . Data Cores Recovered 1 | . 1 . . . . . . Used 1 | . 1 . . . . . . Hacking Detections 22 | . 8 . . 6 . 5 3 Full Trace Events 5 | . . . . 1 . 2 2 Feedback Events . | . . . . . . . . Feedback Blocked . | . . . . . . . . Robot Schematics Acquired . | . . . . . . . . Robots Built . | . . . . . . . . Authchips . | . . . . . . . . Time . | . . . . . . . . Total Robot Build Rating . | . . . . . . . . Part Schematics Acquired 8 | . 1 . . 1 . 2 4 Parts Built . | . . . . . . . . Authchips . | . . . . . . . . Time 190 | . . . . . . 190 . Total Part Build Rating . | . . . . . . . . Parts Repaired 2 | . 2 . . . . . . Time 52 | . 52 . . . . . . Parts Recycled . | . . . . . . . . Recycled Matter . | . . . . . . . . Retrieved Matter . | . . . . . . . . Retrieved Components . | . . . . . . . . Parts Scanalyzed . | . . . . . . . . Part Schematics Acquired . | . . . . . . . . Parts Damaged . | . . . . . . . . Bothacking | -11 -10 -10 -10 -7 -7 -5 -5 ------------ Run | Yrd Mat Min Sub Rec Scr Fac Ext Used RIF Installer . | . . . . . . . . Robots Hacked 2 | . . . . . 2 . . Non-combat . | . . . . . . . . Combat 2 | . . . . . 2 . . Robot Hacks Applied 2 | . . . . . 2 . . parse_system 2 | . . . . . 2 . . Relay Couplers Released . | . . . . . . . . Fabnet Peak Effective % . | . . . . . . . . Robots Rewired . | . . . . . . . . Allies Hacked . | . . . . . . . . Hacks Repelled . | . . . . . . . . Allies | -11 -10 -10 -10 -7 -7 -5 -5 -------- Run | Yrd Mat Min Sub Rec Scr Fac Ext Total Allies 4 | . . . . . 1 . 3 Largest Group 3 | . . . . . 1 1 3 Highest-Rated Group 98 | . . . . . 98 98 90 Highest-Rated Ally 98 | . . . . . 98 98 39 Total Orders 2 | . . . . . 2 . . STAY 1 | . . . . . 1 . . FOLLOW 1 | . . . . . 1 . . Ally Attacks 56 | . . . . . . 35 21 Total Damage 2251 | . . . . . . 1872 379 Kills 11 | . . . . . . 10 1 Allies Corrupted . | . . . . . . . . Allies Melted 1 | . . 1 . . . . . Intel | -11 -10 -10 -10 -7 -7 -5 -5 ------- Run | Yrd Mat Min Sub Rec Scr Fac Ext Active Infowar (turns) 6074 | 84 1511 2253 1578 35 . 257 356 Optics 242 | . . . 207 35 . . . Sensors 143 | . . . 2 . . 141 . A.S.S. 79 | . . . . . . 79 . Structural 1749 | . . . 1356 . . 37 356 Seismic 3861 | 84 1511 2253 13 . . . . Robot Analysis Total 4 | . 2 . . 2 . . . Derelict Logs Recovered 6 | . . 2 1 . 3 . . Drone Launches . | . . . . . . . . Drone Recoveries . | . . . . . . . . Exploration | -11 -10 -10 -10 -7 -7 -5 -5 ------------- Run | Yrd Mat Min Sub Rec Scr Fac Ext Turns Passed 17545 | 115 2908 2253 4303 1734 5135 741 356 Spaces Moved 9126 | 84 1203 861 2090 811 3425 356 296 Core 544 | 81 57 . . . 406 . . Treads 3578 | 3 1146 861 951 96 431 90 . Legs 1 | . . . . . . . 1 Wheels 4442 | . . . 1139 715 2588 . . Hover 413 | . . . . . . 118 295 Flight 148 | . . . . . . 148 . Fastest Speed 50 | 50 50 240 110 150 50 60 61 Average Speed 170 | 53 213 240 179 200 139 150 65 Slowest Speed 480 | 160 240 240 240 480 320 245 190 Overloaded Moves . | . . . . . . . . Propulsion Burnouts . | . . . . . . . . Robots Hopped . | . . . . . . . . Potential Cave-ins 2 | . . . . . . 2 . Cave-ins Triggered . | . . . . . . . . Exploration Rate (%) 62 | 4 99 99 75 82 95 11 34 Regions Visited 7 Branch Regions 5 Pre-discovered Areas 17 | . 3 3 1 5 5 . . Known Exits Taken 4 | . . 1 1 . 1 1 . Unknown Exits Taken 3 | 1 1 . . 1 . . . Scrap Searched 13 | . . 2 7 . 4 . . Spaces Dug 24 | . 17 . 5 . . 2 . Terrain Destroyed 215 | . 168 15 27 3 . 2 . Melee 2 | . . . . . . 2 . Projectile 7 | . 1 . 6 . . . . AOE 206 | . 167 15 21 3 . . . Terrain Rammed . | . . . . . . . . Walls Destroyed . | . . . . . . . . Machines Disabled . | . . . . . . . . Actions | -11 -10 -10 -10 -7 -7 -5 -5 --------- Run | Yrd Mat Min Sub Rec Scr Fac Ext Total 10689 | 127 1436 1013 2472 885 3809 503 444 Wait 840 | 7 100 112 205 26 244 38 108 Move 9119 | 83 1202 860 2089 810 3424 355 296 Hop . | . . . . . . . . Pick Up 154 | 7 23 3 29 15 70 7 . Fast Attach 41 | 3 5 . 4 2 3 21 3 Attach 31 | 2 4 . 7 . 2 16 . Detach 6 | . 2 . . 1 . 3 . Swap 48 | . 15 1 19 6 3 4 . Drop 125 | 1 10 3 30 5 56 19 1 Fire 250 | 24 75 34 84 20 . 13 . Melee 39 | . . . . . 2 27 10 Ram . | . . . . . . . . Kick . | . . . . . . . . Crush . | . . . . . . . . Escape Stasis 26 | . . . . . . . 26 Rewire 5 | . . . . . 5 . . Trap . | . . . . . . . . Miscellaneous 5 | . . . 5 . . . . Route ------- -11/Scrapyard -10/Materials (discovered 6 exits: *Mat x3 / [*Min x2] / *Sub) -10/Mines (discovered 3 exits: *Mat x2 / *Sub) -10/Subcaves (discovered 2 exits: [*Mat] / *Rec) -7/Recycling (discovered 2 exits: *Fac / *Scr) -7/Scraptown (discovered 2 exits: *Fac x2) -5/Factory (discovered 6 exits: *Fac x2 / Upp x2 / *Ext x2) -5/Extension History --------- Turn | Location | Event 11 | -11/Scrapyard | Discovered new exit (range 16) 116 | -11/Scrapyard | Entered Materials 116 | -10/Materials | Discovered new exit (range 15) 316 | -10/Materials | Build established: Mutant 644 | -10/Materials | Discovered new exit (range 16) 849 | -10/Materials | Discovered new exit (range 5) 853 | -10/Materials | Identified exit to Materials 898 | -10/Materials | Learned location of Storage (-7) 933 | -10/Materials | Identified exit to Subcaves 992 | -10/Materials | Learned 4 Subcaves zone layouts 1019 | -10/Materials | Learned location of 2 exits from Mines 1603 | -10/Materials | Central database locked down 2740 | -10/Materials | Repaired Lgt. Treads 2768 | -10/Materials | Repaired Beam Cannon 3024 | -10/Materials | Entered Mines 3096 | -10/Mines | Met a Derelict bent on vengeance 3357 | -10/Mines | Learned location of Recycling (-7) 3519 | -10/Mines | Assembled infested the area 3524 | -10/Mines | Assisted by a Guerilla fighting off Assembled 4172 | -10/Mines | Discovered exit to Materials (range 6) 5277 | -10/Mines | Entered Subcaves 5278 | -10/Subcaves | Approached by a straggling Scientist 5278 | -10/Subcaves | Identified exit to Recycling 6423 | -10/Subcaves | Learned Materials garrison access intel 6448 | -10/Subcaves | Shifting Twisted Machinery released Shrapnel Trap 6713 | -10/Subcaves | Shifting Twisted Machinery released Flamer 7008 | -10/Subcaves | Discovered new exit (range 13) 7013 | -10/Subcaves | Visited Clippyterm 7020 | -10/Subcaves | Learned location of Deep Caves (-6) 7393 | -10/Subcaves | Core integrity fell below 50% 7670 | -10/Subcaves | Disturbed a concealed Subdweller 7771 | -10/Subcaves | Core integrity fell below 20% 7793 | -10/Subcaves | Lost 4 parts (1p2n1w) 8124 | -10/Subcaves | Build established: Subdweller-Mutant 8190 | -10/Subcaves | Shifting Twisted Machinery released Riot Gun 8684 | -10/Subcaves | Visited 4L-MR0's lab 8699 | -10/Subcaves | Found Gun Armor 9230 | -10/Subcaves | Build established: Mutant 9378 | -10/Subcaves | Found SUBCON Basin 9580 | -10/Subcaves | Entered Recycling 9581 | -7/Recycling | Met a Zionite searching for Scraptown 9669 | -7/Recycling | Build established: Scavenger-Mutant 9707 | -7/Recycling | Discovered new exit (range 16) 10031 | -7/Recycling | Scanned before Scraplab entrance 10052 | -7/Recycling | Entered Scraplab 10064 | -7/Recycling | Discovered new exit (range 4) 11314 | -7/Recycling | Entered Scraptown 11383 | -7/Scraptown | Visited Cyclists 11411 | -7/Scraptown | Heard Great Nut preacher, LISTEN AND RECITE! 11477 | -7/Scraptown | Visited Fellowship of the Rings 11502 | -7/Scraptown | Visited The Evicted 11540 | -7/Scraptown | Visited UFD Registry 11540 | -7/Scraptown | Registered with UFD as "Microspreader" 11592 | -7/Scraptown | Visited Assassins FH 11629 | -7/Scraptown | Entered Cyclist Reading Room 11636 | -7/Scraptown | Learned location of Zion (-6) 11673 | -7/Scraptown | Visited Cave Peace 11722 | -7/Scraptown | Visited Comm Corps 11842 | -7/Scraptown | Scanned Subdweller tech in exchange for log data 11851 | -7/Scraptown | Learned Factory stockpile data 11853 | -7/Scraptown | Learned location of 1 exit from Factory 11856 | -7/Scraptown | Learned Research terminal intel 11879 | -7/Scraptown | Discovered new exit (range 7) 11949 | -7/Scraptown | Guru changed UFD alias to "Plasmaranger" 12800 | -7/Scraptown | Visited IN-MT5's Study 13051 | -7/Scraptown | Visited A0-MCA Data Center 13061 | -7/Scraptown | Given a C rating by A0-MCA 13066 | -7/Scraptown | Found A0-MCA's Component Scanner 13104 | -7/Scraptown | Visited Science Guys 13179 | -7/Scraptown | Visited Botcube Research 13220 | -7/Scraptown | Visited Scrapoid Pod Storage 13262 | -7/Scraptown | Visited Derelict Rescue Squad 13275 | -7/Scraptown | Found DRS Beacon 13307 | -7/Scraptown | Visited Sword Containment 13357 | -7/Scraptown | Visited Cartography Club 13405 | -7/Scraptown | Visited Scrapoid Research Area 13438 | -7/Scraptown | Visited Scrap Suit Storage 13465 | -7/Scraptown | Visited Modified Component R&D 13570 | -7/Scraptown | Delivered Scrap Shield to a Scientist 13700 | -7/Scraptown | Learned 8 Materials zone layouts 13700 | -7/Scraptown | Learned 8 Factory zone layouts 13700 | -7/Scraptown | Learned 24 Factory zone layouts 13700 | -7/Scraptown | Learned 8 Access zone layouts 13700 | -7/Scraptown | Learned 4 Recycling zone layouts 13700 | -7/Scraptown | Learned 8 Lower Caves zone layouts 13700 | -7/Scraptown | Learned 12 Lower Caves zone layouts 13700 | -7/Scraptown | Learned 12 Proximity Caves zone layouts 13700 | -7/Scraptown | Learned 24 Proximity Caves zone layouts 13700 | -7/Scraptown | Learned Factory emergency access door positions 13700 | -7/Scraptown | Learned 8 Upper Caves zone layouts 13700 | -7/Scraptown | Learned location of 1 exit from Research 13700 | -7/Scraptown | Learned location of 1 exit from Proximity Caves 13700 | -7/Scraptown | Learned location of 3 exits from Proximity Caves 13700 | -7/Scraptown | Identified exit to Factory 13705 | -7/Scraptown | Found Deep Structural Scanner 13781 | -7/Scraptown | Found Scrap Suit 13866 | -7/Scraptown | Found Scrap Suit 14129 | -7/Scraptown | Found Lrg. Botcube 15301 | -7/Scraptown | Lrg. Botcube activated 15335 | -7/Scraptown | Lrg. Botcube completed mutation into wheeled form, armed with 4 guns. 15403 | -7/Scraptown | Found Scrapoid Pod 15844 | -7/Scraptown | Build established: Mutant 16368 | -7/Scraptown | Met Optimus 16368 | -7/Scraptown | Accepted into 0bPrime 16449 | -7/Scraptown | Entered Factory 16449 | -5/Factory | Accompanied by 1 ally 16449 | -5/Factory | Evolved 10 slots: Power x1, Propulsion x4, Utility x5 16450 | -5/Factory | Identified exit to Factory 16450 | -5/Factory | Identified exit to Upper Caves 16451 | -5/Factory | Identified exit to Extension 16675 | -5/Factory | Found Active Sensor Suite 17067 | -5/Factory | Core integrity fell below 50% 17093 | -5/Factory | Core integrity fell below 20% 17122 | -5/Factory | Lost 19 parts (4p7n6u2w) 17169 | -5/Factory | Tech Extrapolator generated special schematic: Deep Structural Scanner 17190 | -5/Factory | Entered Extension 17253 | -5/Extension | Rescued a captive Derelict 17306 | -5/Extension | Rescued a captive Derelict 17328 | -5/Extension | Rescued a captive Derelict 17362 | -5/Extension | Spotted B-75 Beast 17546 | -5/Extension | Destroyed by G-50 Soldier with Heavy Laser Last Messages --------------- 17387_ Destroyed Com. Wheel. 17387_ R-10 Processor destroyed. 17389_ Acquired 65 matter. 17391_ Acquired 5 matter. 17398_ System corrupted: Component data lost. 17398_ Acquired 5 matter. 17401_ Acquired 3 matter. 17420_ /W 8SX:8QYHLX9=2 T0E 17469_ Tech Extrapolator generates new schematic "Mak. Thermal Plating". Influences: Imp. Thermal Shield, Med. Reflective Plating. 17476_ G-50 Soldier destroyed. 17479_ Acquired 64 matter. 17481_ System corrupted: Component data lost. 17481_ Acquired Carbon-fiber Leg. 17486_ W-25 Informer sends out distress signal. 17502_ Door malfunctions. 17503_ System corrupted: Matter fused (-5). 17529_ System corrupted: Matter fused (-9). 17544_ Critical hit (Burn: +37). 17544_ P-70 Sage destroyed. 17544_ Companion Sword surprise attacks G-50 Soldier. Map ----- +----------------------------------------------------+ | | | | | | | | | | | | | | | | | | | | | | | | | | | | | | | ?????????????????????????????????????????### | | ############################################ | | ############################################ | | ############################################ | | ############################################ | | #### ######T# ##### | | #### ######## #### ##### | | #### ^ # # ######## ##### | | #### += / / # ######## """ | | ####### #### / # ######## "T" ######### | | ####### #### #@######## " " ######### | | ####### #### / g!%! ######### | | ####### #### #[= ##### !######### | | ???#### ########### ##### ####????? | | ???#### ########### ##### ####????? | | ???#### ###########+##+##### ####????? | | ?###### ######## ##############????? | | ?###### ######## ##############????? | | ?###### ######## ##############????? | | ?###### ######## ##############????? | | ?#### #####################??????????????? | | ?#### #####################??????????????? | | ?#### #####################??????????????? | | ?##### ######################??????????????? | | ?##### #####???????????????????????????????? | | ?##### #####???????????????????????????????? | | ?##### #####???????????????????????????????? | | ??#### ####????????????????????????????????? | | ??#### ####????????????????????????????????? | | ??#### ####????????????????????????????????? | | ??#### ####????????????????????????????????? | | ###### ########????????????????????????????? | | ###### ########????????????????????????????? | | ###### #################???????????????????? | | ###### #################???????????????????? | +----------------------------------------------------+ Best States ------------- Heat Dissipation 40 Energy Generation 24 Energy Capacity 335 Matter Stores 300 Matter Capacity 300 Sight Range 21 Robot Scan Range 20 Terrain Scan Density 10 EM Shielding 2 Armor Coverage 800 Resistance: EM 25 Core Shielding 20 Evasion (%) 53 Melee Accuracy 11 Armor Integrity Analysis 30 Recoil Reduction 4 Offensive Hacking 10 Defensive Hacking 10 Item Schematics ----------------- Hcp. Storage Unit | -10/Materials | Hacked Imp. Gravmag System | -7/Recycling | Hacked Shock Absorption System | -5/Factory | Extracted Deep Structural Scanner | -5/Factory | Extrapolated Mak. Coolant Network | -5/Extension | Extrapolated Hvy. Beamcaster | -5/Extension | Extrapolated Mak. Medium Armor Plating | -5/Extension | Extrapolated Mak. Thermal Plating | -5/Extension | Extrapolated Robot Schematics ------------------ None Fabricated ------------ Nothing Repaired ---------- Lgt. Treads | 57% | -10/Materials Beam Cannon | 58% | -10/Materials Alien Tech Used ----------------- None Achievements -------------- None Challenges ------------ None Game ------ Seed TerrorMetafiberChip Manual? 0 Play Time 01:45:15 Cumulative 329.4 hours Start 2025.10.09 @ 18:52:30 End 2025.10.10 @ 00:02:23 Sessions 3 Manual Loads 0 Difficulty Rogue Special Mode None Game No. 171 Rogue 171 Adventurer 0 Explorer 0 Win Type - Total 1 Types 0/0/0/0/1/0/0/0/0/0 Lore% 81 Gallery% 78 Achievement% 66 Wizard Run 0 Options --------- Layout 0 ASCII 0 Keyboard 0 Movement Mouse Keybinds 0 Fullscreen 1 Font 24/Smallcaps Map View 183x50 Zoom Use 0% Tactical HUD 1 Map Filters NONE Filters NONE Steam 0 RUN: ffa0de16-e869-46c6-9abf-bd381279c391